bitfinex/quotes_ETHUSD_20220305
["timestamp","ask_amount","ask_price","bid_price","bid_amount"]
[1646521761411,0.00162509,2668.2,2667.9,4.04]
[1646521761661,0.00162509,2668.2,2667.8,0.54]
[1646521761857,0.04035807,2668.5,2667.8,0.54]
[1646521762073,0.04685746,2668.5,2668.3,0.97293717]
[1646521763155,0.04035807,2668.5,2668.3,0.97293717]
[1646521763355,0.04390374,2668.5,2668.3,0.97293717]
[1646521764358,0.04035807,2668.5,2668.3,0.97293717]
[1646521764657,0.04390374,2668.5,2668.3,0.97293717]
[1646521765507,0.04035807,2668.5,2668.3,0.97293717]
[1646521765807,0.04390374,2668.5,2668.3,0.97293717]
[1646521766208,0.04390374,2668.5,2668.0,1.87411]
[1646521766407,0.04390374,2668.5,2667.9,1.87413]
[1646521766607,0.04035807,2668.5,2667.9,1.87413]
[1646521767009,0.0035429,2668.4,2667.9,1.87413]
[1646521767407,0.0035429,2668.4,2668.3,1.03575704]
[1646521767808,0.04035807,2668.5,2668.3,1.03575704]
[1646521768208,0.0439009,2668.5,2668.3,1.03575704]
[1646521769063,0.04035807,2668.5,2668.3,1.03575704]
[1646521769357,0.04390086,2668.5,2668.3,1.97277704]
[1646521770053,0.04390086,2668.5,2668.3,5.67277704]
[1646521770252,0.04035807,2668.5,2668.3,5.67277704]
[1646521770456,0.04390087,2668.5,2668.3,5.67277704]
[1646521771458,0.04035807,2668.5,2668.3,5.67277704]
[1646521771656,0.04390087,2668.5,2668.3,5.67277704]
[1646521772802,0.04035807,2668.5,2668.3,5.67277704]
[1646521776564,0.04383585,2668.5,2668.3,5.67277704]
[1646521777555,0.04035807,2668.5,2668.3,5.67277704]
[1646521777759,0.04383585,2668.5,2668.3,5.67277704]
[1646521778756,0.04035807,2668.5,2668.3,5.67277704]
[1646521778958,0.0439011,2668.5,2668.3,5.67277704]
[1646521780056,0.04035807,2668.5,2668.3,5.67277704]
[1646521780309,0.0439011,2668.5,2668.3,5.67277704]
[1646521781117,0.04035807,2668.5,2668.3,5.67277704]
[1646521781317,0.0439011,2668.5,2668.3,5.67277704]
[1646521782419,0.03935273,2668.5,2668.3,5.67277704]
[1646521782615,0.04277884,2668.5,2668.3,5.67277704]
[1646521783418,0.03935273,2668.5,2668.3,5.67277704]
[1646521783819,0.04277884,2668.5,2668.3,5.67277704]
[1646521784660,0.03935273,2668.5,2668.3,5.67277704]
[1646521784857,0.04277884,2668.5,2668.3,5.67277704]
[1646521785863,0.03935273,2668.5,2668.3,5.67277704]
[1646521786164,0.04265443,2668.5,2668.3,5.67277704]
[1646521787164,0.03935273,2668.5,2668.3,5.67277704]
[1646521787364,0.04265443,2668.5,2668.3,5.66295405]
[1646521788409,0.03935273,2668.5,2668.3,5.66295405]
[1646521788610,0.04265443,2668.5,2668.3,5.66295405]
[1646521789512,0.03935273,2668.5,2668.3,5.66295405]
[1646521789713,0.00344398,2668.5,2668.3,5.66295405]
[1646521790618,0.00149258,2668.9,2668.3,5.66295405]
[1646521790820,3.5,2669.1,2668.3,5.66295405]
[1646521791021,0.00344398,2668.5,2668.3,5.66295405]
[1646521791858,0.041058,2668.8,2668.3,5.66295405]
[1646521792158,0.00344398,2668.5,2668.3,6.66295405]
[1646521793157,0.04048957,2668.7,2668.3,6.66295405]
[1646521793359,0.00331453,2668.5,2668.3,6.66295405]
[1646521793559,0.00331453,2668.5,2668.3,5.66295405]
[1646521793763,0.00331453,2668.5,2668.3,4.72593405]
[1646521794360,0.04048957,2668.7,2668.3,4.72593405]
[1646521794561,0.00331453,2668.5,2668.3,4.72593405]
[1646521795616,0.04048957,2668.7,2668.3,4.72593405]
[1646521795916,0.00331453,2668.5,2668.3,4.72593405]
[1646521796715,0.04048957,2668.7,2668.3,5.66298405]
[1646521796917,0.00330923,2668.5,2668.3,5.66298405]
[1646521797317,0.00330923,2668.5,2668.3,4.63705]
[1646521797920,0.04048957,2668.7,2668.3,4.63705]
[1646521798117,0.00330923,2668.5,2668.3,4.63705]
[1646521799155,0.04048957,2668.7,2668.3,4.63705]
[1646521799358,0.00330923,2668.5,2668.3,4.63705]
[1646521800359,0.04048957,2668.7,2668.3,4.63705]
[1646521800563,0.00331351,2668.5,2668.3,4.6359423]
[1646521801462,0.04048957,2668.7,2668.3,4.6359423]
[1646521801863,0.00331351,2668.5,2668.3,4.6359423]
[1646521802665,0.04048957,2668.7,2668.3,4.6359423]
[1646521803112,0.00331351,2668.5,2668.3,4.6359423]
[1646521804008,1.53614294,2668.6,2668.3,4.6359423]
[1646521804209,0.00331275,2668.5,2668.3,4.6359423]
[1646521805208,1.53614294,2668.6,2668.3,4.6359423]
[1646521805411,0.00331275,2668.5,2668.3,4.6359423]
[1646521806415,1.53614294,2668.6,2668.3,4.6359423]
[1646521806657,0.00331275,2668.5,2668.3,4.6359423]
[1646521807558,1.53614294,2668.6,2668.3,4.6359423]
[1646521807757,0.00331722,2668.5,2668.3,4.6359423]
[1646521808761,1.53614294,2668.6,2668.3,4.6359423]
[1646521809059,0.00331722,2668.5,2668.3,4.6359423]
[1646521809960,1.53614294,2668.6,2668.3,4.6359423]
[1646521810161,0.00331722,2668.5,2668.3,4.6359423]
[1646521811312,0.00331662,2668.5,2668.3,4.6359423]
[1646521812312,1.53607427,2668.6,2668.3,4.6359423]
[1646521812509,0.00331662,2668.5,2668.3,4.6359423]
[1646521813514,1.53606185,2668.6,2668.3,4.6359423]
[1646521813911,0.00331662,2668.5,2668.3,4.6359423]
[1646521814159,14.97331662,2668.5,2668.3,3.6988923]
[1646521814365,16.50606185,2668.4,2668.3,3.6988923]
[1646521814571,11.47,2668.2,2667.0,0.3749]
[1646521814874,0.01294279,2667.9,2667.0,0.3749]
[1646521815067,12.16078797,2667.7,2667.0,0.3749]
[1646521815366,11.47,2667.2,2666.6,0.048]
[1646521815566,5.03606185,2667.1,2666.6,0.048]
[1646521815764,1.53606185,2667.0,2666.6,0.048]
[1646521815967,13.00606185,2667.0,2666.6,0.048]
[1646521816171,0.66633838,2667.2,2666.6,0.048]
[1646521816172,14.97,2666.9,2666.6,0.048]
[1646521816470,11.47,2666.8,2666.6,0.048]
[1646521816668,14.97,2666.7,2666.6,0.048]
[1646521816867,12.65320223,2666.7,2666.6,0.048]
[1646521817068,16.15320223,2666.7,2666.6,0.048]
[1646521819833,16.15320223,2666.7,2666.6,3.748]
[1646521821767,11.50819997,2666.8,2666.6,3.748]
[1646521822165,0.03819997,2666.8,2666.6,3.748]
[1646521822967,3.77733838,2667.2,2666.6,3.748]
[1646521822968,2.7365,2667.2,2666.6,3.748]
[1646521823169,11.47,2667.7,2666.6,3.748]
[1646521823367,13.0223,2667.7,2666.6,4.748]
[1646521823568,0.00321476,2667.4,2666.6,4.748]
[1646521823972,0.00321476,2667.4,2667.1,1.11600152]
[1646521824368,16.1804,2667.8,2667.1,1.11600152]
[1646521824671,0.00310542,2667.4,2667.1,1.11600152]
[1646521825618,0.1874,2667.9,2667.1,1.11600152]
[1646521825817,14.97,2668.0,2667.1,1.11600152]
[1646521825818,0.00310543,2667.4,2667.1,1.11600152]
[1646521826817,14.97,2668.0,2667.1,1.11600152]
[1646521827119,0.00310543,2667.4,2667.1,1.11600152]
[1646521827918,0.1874,2667.9,2667.1,1.11600152]
[1646521828320,0.00311278,2667.4,2667.1,1.11600152]
[1646521829162,0.1874,2667.9,2667.1,1.11600152]
[1646521829357,0.00311647,2667.4,2667.1,1.11600152]
[1646521830159,0.00311647,2667.4,2667.1,4.81600152]
[1646521830366,0.1874,2667.9,2667.1,4.81600152]
[1646521830563,0.00311647,2667.4,2667.1,4.81600152]
[1646521831565,15.1574,2668.0,2667.1,4.81600152]
[1646521831772,0.00311573,2667.4,2667.1,4.81600152]
[1646521832910,15.1574,2668.0,2667.1,4.81600152]
[1646521833110,0.0031151,2667.4,2667.1,4.81600152]
[1646521833510,0.0031151,2667.4,2667.1,5.75344152]
[1646521833911,15.1574,2668.0,2667.1,5.75344152]
[1646521834319,0.0031151,2667.4,2667.1,5.75344152]
[1646521835116,3.6874,2668.0,2667.1,5.75344152]
[1646521835516,0.00195197,2667.4,2667.1,5.75344152]
[1646521836565,3.6874,2668.0,2667.1,5.75344152]
[1646521836765,15.1574,2668.0,2667.1,5.75344152]
[1646521837165,15.1574,2668.0,2667.1,4.81600152]
[1646521837566,15.1574,2668.0,2667.6,0.048]
[1646521838973,0.00161252,2667.9,2667.6,0.048]
[1646521839578,15.10901252,2668.0,2667.6,0.048]
[1646521840174,0.0035435,2667.9,2667.6,0.048]
[1646521840414,0.0035435,2667.9,2667.6,0.03565017]
[1646521841022,0.0035435,2667.9,2667.6,0.02946666]
[1646521841216,15.10901252,2668.0,2667.6,0.02946666]
[1646521841819,0.1874,2668.0,2667.6,0.02946666]
[1646521843120,14.951,2668.1,2667.6,0.02946666]
[1646521843721,14.951,2668.1,2667.6,1.06177577]
[1646521843922,0.00354343,2668.0,2667.6,1.06177577]
[1646521844765,11.47,2668.1,2667.6,1.06177577]
[1646521845165,0.00329821,2667.9,2667.6,1.06177577]
[1646521845968,11.47,2668.1,2667.6,1.06177577]
[1646521846167,0.00329824,2667.9,2667.6,1.06177577]
[1646521847171,11.47,2668.1,2667.6,1.06177577]
[1646521847476,0.00329824,2667.9,2667.6,1.06177577]
[1646521848515,11.47,2668.1,2667.6,1.06177577]
[1646521848716,0.00329824,2667.9,2667.6,1.06177577]
[1646521848916,0.00329824,2667.9,2667.6,0.02946666]
[1646521849517,11.47,2668.1,2667.6,0.02946666]
[1646521849919,0.00344455,2667.9,2667.6,0.02946666]
[1646521850919,3.5,2668.0,2667.6,0.02946666]
[1646521851119,0.00344455,2667.9,2667.6,0.02946666]
[1646521851320,0.00344455,2667.9,2667.6,3.72946666]
[1646521851963,11.47,2668.1,2667.6,3.72946666]
[1646521852365,0.00344455,2667.9,2667.6,3.72946666]
[1646521853165,16.094,2668.1,2667.6,3.72946666]
[1646521853467,1.12742724,2667.9,2667.6,3.72946666]
[1646521853666,1.124,2667.8,2667.6,3.72946666]
[1646521854671,1.12742721,2667.9,2667.6,3.72946666]
[1646521854869,1.124,2667.7,2667.6,3.72946666]
[1646521856636,1.12742718,2667.9,2667.6,3.72946666]
[1646521856837,1.124,2667.7,2667.6,3.72946666]
[1646521858739,1.12730966,2667.9,2667.6,3.72946666]
[1646521858939,1.124,2667.7,2667.6,3.72946666]
[1646521860764,1.1273176,2667.9,2667.6,3.72946666]
[1646521860963,1.124,2667.7,2667.6,3.72946666]
[1646521862812,1.12295957,2667.7,2667.6,3.72946666]
[1646521863615,2.65965278,2667.7,2667.6,3.72946666]
[1646521866121,2.65965278,2667.7,2667.6,4.10396666]
[1646521866324,0.95034659,2667.9,2667.6,5.10396666]
[1646521866573,0.94702967,2667.9,2667.6,5.10396666]
[1646521866761,0.00331692,2667.9,2667.6,5.10396666]
[1646521866963,0.00331692,2667.9,2667.8,0.3745]
[1646521867166,0.01326601,2668.2,2668.0,0.3745]
[1646521867363,0.01326601,2668.2,2668.1,0.9145]
[1646521867562,0.00149258,2668.8,2668.1,0.9145]
[1646521867771,7.37,2668.9,2668.1,0.9145]
[1646521867963,0.00149258,2668.8,2668.1,0.9145]
[1646521868164,7.37,2668.9,2668.7,1.11486887]
[1646521868369,0.04255058,2668.8,2668.7,1.11486887]
[1646521868563,0.041058,2668.8,2668.7,1.11486887]
[1646521869168,0.31917899,2668.6,2668.4,3.8745]
[1646521869368,0.31917899,2668.6,2668.5,3.5]
[1646521870419,0.31917899,2668.6,2668.5,4.6743094]
[1646521871427,0.31917899,2668.6,2668.4,1.0]
[1646521871625,0.31917899,2668.6,2668.5,3.7]
[1646521872226,0.31917899,2668.6,2668.5,2.06135177]
[1646521874465,11.78917899,2668.6,2668.5,2.06135177]
[1646521874667,0.31917899,2668.6,2668.5,2.06135177]
[1646521875071,11.78917899,2668.6,2668.5,2.06135177]
[1646521875669,11.78917899,2668.6,2668.5,2.06040845]
[1646521876867,14.19871167,2668.6,2668.5,2.06040845]
[1646521877269,2.72871167,2668.6,2668.5,2.06040845]
[1646521878123,0.31917899,2668.6,2668.5,2.06040845]
[1646521881325,0.31917899,2668.6,2667.8,2.00790051]
[1646521882359,0.00325841,2668.3,2667.8,2.00790051]
[1646521883359,0.04198215,2668.7,2667.8,2.00790051]
[1646521883560,0.00312257,2668.2,2667.8,2.00790051]
[1646521884561,0.04198215,2668.7,2667.8,2.00790051]
[1646521884762,0.0031226,2668.1,2667.8,2.00790051]
[1646521885164,0.0031226,2668.1,2667.8,1.82070051]
[1646521885623,0.04198215,2668.7,2667.8,0.93920906]
[1646521885824,0.00324541,2668.1,2667.8,0.93920906]
[1646521886930,1.53631487,2668.4,2667.8,0.93920906]
[1646521887124,14.29704394,2668.7,2667.8,0.93920906]
[1646521887425,11.47,2668.5,2667.7,0.02946666]
[1646521887625,11.47,2668.3,2667.7,0.02946666]
[1646521887825,1.53629775,2668.2,2667.7,0.02946666]
[1646521889660,0.0033278,2668.1,2667.7,0.02946666]
[1646521890465,1.53629775,2668.2,2667.7,0.02946666]
[1646521890866,0.00343252,2668.0,2667.7,0.02946666]
[1646521891465,0.00343252,2668.0,2667.7,2.32946666]
[1646521891681,1.53629775,2668.2,2667.7,2.32946666]
[1646521892071,0.00343249,2668.0,2667.7,2.32946666]
[1646521892915,1.53629775,2668.2,2667.7,2.32946666]
[1646521893115,0.00343249,2668.0,2667.7,2.32946666]
[1646521894116,1.47867945,2668.3,2667.7,2.32946666]
[1646521894316,0.00307356,2668.0,2667.7,2.32946666]
[1646521894721,0.00307356,2668.0,2667.7,3.26664666]
[1646521895317,1.47867945,2668.3,2667.7,3.26664666]
[1646521895520,0.00331524,2668.0,2667.7,3.26664666]
[1646521896421,1.47867945,2668.3,2667.7,3.26664666]
[1646521896871,0.00331524,2668.0,2667.7,3.26045166]
[1646521897769,1.53633312,2668.2,2667.7,3.26045166]
[1646521897967,0.00331524,2668.0,2667.7,3.26045166]
[1646521898969,1.53630282,2668.2,2667.7,3.26045166]
[1646521899166,0.00323571,2668.0,2667.7,3.26045166]
[1646521900171,1.47867945,2668.3,2667.7,3.26045166]
[1646521900414,0.00323571,2668.0,2667.7,3.26045166]
[1646521901316,1.47867945,2668.3,2667.7,3.26045166]
[1646521901517,0.00323571,2668.0,2667.7,3.26045166]
[1646521902522,1.53630457,2668.2,2667.7,2.32327166]
[1646521902918,0.00311107,2668.0,2667.7,2.32327166]
[1646521903717,1.53630457,2668.2,2667.7,2.32327166]
[1646521903918,0.00311107,2668.0,2667.7,2.32327166]
[1646521904962,1.53630457,2668.2,2667.7,2.32327166]
[1646521905168,0.00311107,2668.0,2667.7,2.32327166]
[1646521906269,1.53630457,2668.2,2667.7,2.32327166]
[1646521906467,0.00312094,2668.0,2667.7,2.32327166]
[1646521907468,1.53630457,2668.2,2667.7,2.32327166]
[1646521907672,0.00312094,2668.0,2667.7,2.32327166]
[1646521908618,1.53630457,2668.2,2667.7,2.32327166]
[1646521908820,0.00312094,2668.0,2667.7,2.32327166]
[1646521909822,1.53630457,2668.2,2667.7,2.32327166]
[1646521910020,0.00311967,2668.0,2667.7,2.32327166]
[1646521911021,1.53630457,2668.2,2667.7,2.32327166]
[1646521911223,0.00311967,2668.0,2667.7,2.32327166]
[1646521912071,1.53630457,2668.2,2667.7,2.32327166]
[1646521912270,0.00140456,2668.0,2667.7,2.32327166]
[1646521913372,1.53631741,2668.3,2667.7,2.32327166]
[1646521913573,0.00312239,2668.0,2667.7,2.32327166]
[1646521914473,1.53631741,2668.3,2667.7,2.32327166]
[1646521914876,1.53631741,2668.2,2667.7,2.32327166]
[1646521915077,1.53631741,2668.1,2667.7,2.32327166]
[1646521915314,11.47,2668.6,2667.7,2.32327166]
[1646521915515,1.53633296,2668.5,2667.8,1.06861329]
[1646521916616,11.47,2668.4,2667.7,2.32327166]
[1646521916818,13.00633296,2668.3,2667.7,2.32327166]
[1646521917021,1.53633296,2668.2,2667.7,2.32327166]
[1646521917218,1.53633296,2668.1,2667.7,2.32327166]
[1646521917417,1.53633296,2668.0,2667.7,2.32327166]
[1646521917617,1.53633296,2667.9,2667.7,2.32327166]
[1646521917823,0.00343703,2668.3,2667.7,2.32327166]
[1646521918023,4.234225,2668.3,2667.7,2.32327166]
[1646521918228,13.03528797,2667.8,2666.7,1.0]
[1646521918422,15.16078797,2667.6,2667.0,0.00343843]
[1646521918621,11.47,2667.4,2667.0,0.00343843]
[1646521918820,12.67124002,2667.2,2667.0,0.00343843]
[1646521919076,13.54651335,2667.1,2667.0,0.00343843]
[1646521919265,13.92101335,2667.1,2666.2,0.3748]
[1646521919466,11.47,2666.9,2666.0,0.00096]
[1646521919666,1.53651335,2666.8,2666.0,0.00096]
[1646521920067,11.47,2666.7,2665.9,0.01375812]
[1646521920267,1.53651335,2666.6,2666.0,0.1875]
[1646521920476,1.11448982,2666.5,2666.0,0.1875]
[1646521920873,1.11448982,2666.5,2666.2,0.003313]
[1646521921871,11.47,2666.7,2665.9,2.48846]
[1646521922073,11.47,2666.5,2666.2,0.00331297]
[1646521923039,12.39836375,2666.7,2665.9,2.30096]
[1646521923238,12.39836375,2666.7,2666.2,0.00331297]
[1646521923443,1.53723288,2666.6,2666.2,0.00331297]
[1646521924239,11.47,2666.7,2665.9,0.1875]
[1646521924440,11.47,2666.7,2666.3,0.00332149]
[1646521925442,11.47,2666.7,2665.8,0.1875]
[1646521925443,11.8445,2666.7,2665.8,0.1875]
[1646521925647,12.57301114,2666.7,2666.4,0.00332142]
[1646521926576,12.57301114,2666.7,2665.7,0.00096]
[1646521926577,12.94751114,2666.7,2665.8,0.1875]
[1646521926766,12.57301114,2666.7,2666.4,0.00332139]
[1646521927567,11.47,2666.7,2666.4,0.00332139]
[1646521927768,11.47,2666.7,2665.9,0.00096]
[1646521927968,14.3939,2667.1,2666.4,0.00332139]
[1646521928174,2.9239,2667.1,2666.4,0.00332139]
[1646521928468,5.02328595,2667.6,2666.5,1.19793455]
[1646521928469,1.15465151,2667.5,2666.5,1.19793455]
[1646521929269,1.15465151,2667.5,2666.9,0.00332052]
[1646521930170,1.53700918,2667.4,2666.6,3.5]
[1646521930429,7.1461,2668.1,2667.0,0.00332043]
[1646521930628,1.7273339,2668.0,2667.0,0.00332043]
[1646521930836,0.00331919,2668.0,2667.0,0.00332043]
[1646521931126,1.53993087,2668.0,2667.0,0.00332043]
[1646521931326,2.51191433,2668.0,2667.0,3.07745495]
[1646521931528,2.45373355,2668.0,2667.0,3.07745495]
[1646521931726,2.45705292,2668.0,2667.0,4.08077556]
[1646521931926,2.45705292,2668.0,2667.0,3.08077556]
[1646521932125,2.45705292,2668.0,2667.0,4.08077556]
[1646521932525,2.45373355,2668.0,2667.0,4.07745495]
[1646521933026,1.48175028,2668.0,2667.0,4.08077557]
[1646521933230,1.48175028,2668.0,2667.0,4.07461957]
[1646521933828,1.6308,2668.1,2667.0,4.44579895]
[1646521934086,0.00331938,2668.0,2667.5,1.00592556]
[1646521934871,0.00331938,2668.0,2667.6,1.87421]
[1646521935073,0.89080229,2668.5,2667.6,1.87421]
[1646521935380,0.00331953,2668.0,2667.5,2.94302556]
[1646521935576,0.00331953,2668.0,2667.5,1.94302556]
[1646521936183,1.19909258,2668.7,2667.5,2.31752556]
[1646521936576,0.00331951,2668.0,2667.5,2.31752556]
[1646521936978,0.00331951,2668.0,2667.5,3.31752556]
[1646521937181,0.00331951,2668.0,2667.5,4.31752556]
[1646521937381,1.19909258,2668.7,2667.5,4.31752556]
[1646521937579,1.19909258,2668.7,2667.5,3.38042556]
[1646521937826,1.19909258,2668.7,2667.4,1.0]
[1646521937827,0.00331951,2668.0,2667.4,1.0]
[1646521938027,0.00331951,2668.0,2667.0,3.41796075]
[1646521938626,15.3445,2668.6,2667.0,3.08914]
[1646521938931,0.00331936,2668.0,2667.4,1.05900616]
[1646521939329,0.00331936,2668.0,2667.7,0.03285881]
[1646521939929,14.97,2668.4,2667.7,0.03285881]
[1646521940131,0.00331956,2668.0,2667.7,0.03285881]
[1646521940935,14.97,2668.4,2667.7,0.03285881]
[1646521941136,1.08012569,2668.3,2667.7,0.03285881]
[1646521941335,0.00331956,2668.0,2667.7,0.03285881]
[1646521942167,3.5,2668.2,2667.7,0.03285881]
[1646521942368,4.58012569,2668.3,2667.7,0.03285881]
[1646521942567,0.00331956,2668.0,2667.7,0.03285881]
[1646521943369,4.58012569,2668.3,2667.7,0.03285881]
[1646521943570,4.58012569,2668.3,2667.3,0.97010601]
[1646521943770,0.00331956,2668.0,2667.3,0.97010601]
[1646521944569,4.58012569,2668.3,2667.3,0.97010601]
[1646521944770,1.53654874,2668.2,2667.3,2.02111109]
[1646521944972,0.00331944,2668.0,2667.3,2.02111109]
[1646521945620,0.00331944,2668.0,2667.3,0.03279601]
[1646521945818,6.05863944,2668.3,2667.3,0.03279601]
[1646521946018,0.00331944,2668.0,2667.3,0.03279601]
[1646521946724,0.00331944,2668.0,2667.3,1.16330572]
[1646521947119,6.05863944,2668.3,2667.3,1.16330572]
[1646521947319,0.00331944,2668.0,2667.3,1.16330572]
[1646521948120,6.05863944,2668.3,2667.3,1.16330572]
[1646521948521,0.00331944,2668.0,2667.5,0.03292162]
[1646521949371,6.05863944,2668.3,2667.5,0.03292162]
[1646521949768,0.0033195,2668.0,2667.5,0.03292162]
[1646521950676,6.05863944,2668.3,2667.5,0.03292162]
[1646521950873,0.0033195,2668.0,2667.5,0.03292162]
[1646521951877,6.05863944,2668.3,2667.5,0.03292162]
[1646521952073,0.0033195,2668.0,2667.5,0.03292162]
[1646521953118,2.55863944,2668.3,2667.5,0.03292162]
[1646521953322,0.0033195,2668.0,2667.5,0.03292162]
[1646521953517,0.0033195,2668.0,2667.3,0.93731]
[1646521953518,0.0033195,2668.0,2667.3,0.97016881]
[1646521954425,0.00309009,2668.0,2667.3,0.97016881]
[1646521955424,1.47851375,2668.3,2667.3,0.97016881]
[1646521955625,0.00309009,2668.0,2667.3,0.97016881]
[1646521956700,1.47851375,2668.3,2667.3,0.97016881]
[1646521956899,0.00309009,2668.0,2667.3,0.97016881]
[1646521957902,1.47851375,2668.3,2667.3,0.97016881]
[1646521958103,0.00309009,2668.0,2667.3,0.97016881]
[1646521958304,0.00178931,2668.0,2667.3,0.97016881]
[1646521958504,0.00178931,2668.0,2667.5,0.03292162]
[1646521959107,1.47851375,2668.3,2667.5,0.03292162]
[1646521962926,0.00355333,2668.1,2667.5,0.03292162]
[1646521963924,1.47851375,2668.3,2667.3,1.15756881]
[1646521964171,1.47851375,2668.3,2667.3,0.97016881]
[1646521964172,0.00355327,2668.1,2667.3,0.97016881]
[1646521964977,1.47851375,2668.3,2667.3,0.97016881]
[1646521965371,0.0035532,2668.1,2667.3,0.97016881]
[1646521966177,1.47851375,2668.3,2667.3,0.97016881]
[1646521966575,0.0035532,2668.1,2667.3,0.97016881]
[1646521967480,1.47851375,2668.3,2667.3,0.97016881]
[1646521967675,0.00343328,2668.1,2667.3,0.97016881]
[1646521968618,1.47851375,2668.3,2667.5,0.03312025]
[1646521968817,0.00343328,2668.1,2667.5,0.03312025]
[1646521969819,1.47851375,2668.3,2667.5,0.03312025]
[1646521970025,0.00343334,2668.1,2667.5,0.03312025]
[1646521971026,1.53639976,2668.2,2667.5,0.03312025]
[1646521971226,0.00333289,2668.1,2667.5,0.03312025]
[1646521972270,1.53637273,2668.2,2667.5,0.03312025]
[1646521972473,0.00333289,2668.1,2667.5,0.03312025]
[1646521973474,1.53637273,2668.2,2667.3,0.97036744]
[1646521973672,0.00333289,2668.1,2667.3,0.97036744]
[1646521974073,0.00333289,2668.1,2667.3,0.03305744]
[1646521974675,1.53637273,2668.1,2667.3,0.03305744]
[1646521974877,1.53969886,2668.1,2667.3,0.03305744]
[1646521975179,1.53969886,2668.1,2667.3,0.97036744]
[1646521975925,1.53637273,2668.1,2667.3,0.97036744]
[1646521976123,1.53969886,2668.1,2667.3,0.97036744]
[1646521977125,1.53637273,2668.1,2667.3,0.97036744]
[1646521977325,0.00332613,2668.1,2667.7,0.93713]
[1646521978125,1.53630758,2668.3,2667.7,0.93713]
[1646521978525,0.00332662,2668.1,2667.7,0.93713]
[1646521979389,1.53630758,2668.3,2667.7,0.93713]
[1646521979592,0.00332662,2668.1,2667.7,0.93713]
[1646521980594,1.53630758,2668.3,2667.7,0.93713]
[1646521980794,0.00332662,2668.1,2667.7,0.93713]
[1646521981895,1.53630758,2668.3,2667.7,0.93713]
[1646521982097,0.00332658,2668.1,2667.7,0.93713]
[1646521983119,1.53630758,2668.3,2667.7,0.93713]
[1646521984020,1.53630758,2668.3,2667.9,0.03299464]
[1646521985725,0.00355326,2668.2,2667.9,0.03299464]
[1646521986324,1.53986084,2668.2,2667.9,0.03299464]
[1646521986579,1.53630758,2668.2,2667.9,0.03299464]
[1646521986969,3.5,2668.1,2667.9,0.03299464]
[1646521987174,1.53630758,2668.0,2667.9,0.03299464]
[1646521987371,1.53630758,2668.0,2667.3,0.00355442]
[1646521987372,0.06598928,2667.8,2667.3,0.00355442]
[1646521987570,1.53630758,2667.7,2667.3,0.00355442]
[1646521987769,3.5,2667.6,2667.2,0.1874]
[1646521987974,1.53630758,2667.5,2667.2,0.1874]
[1646521988171,1.53630758,2667.5,2667.3,0.00254068]
[1646521988371,0.06598928,2667.8,2667.3,0.00254068]
[1646521988672,1.5366481,2667.7,2667.3,0.00254068]
[1646521989076,1.5366481,2667.7,2667.2,0.1874]
[1646521990529,1.5366481,2667.7,2667.3,0.00343488]
[1646521991527,0.06598928,2667.8,2667.2,0.1874]
[1646521991728,0.06598928,2667.8,2667.4,0.00343485]
[1646521992627,0.06598928,2667.8,2667.2,0.1874]
[1646521992926,0.06598928,2667.8,2667.4,0.92276252]
[1646521993726,0.06598928,2667.8,2667.4,0.91932764]
[1646521993929,1.50237135,2668.4,2667.4,1.85659764]
[1646521994176,0.00332253,2667.9,2667.4,2.39992078]
[1646521994774,0.00332253,2667.9,2667.4,3.39992078]
[1646521994973,0.00147135,2668.4,2667.4,3.39992078]
[1646521994974,0.00147135,2668.4,2667.4,3.39659764]
[1646521995177,0.00147135,2668.4,2667.4,4.39659764]
[1646521995378,0.00147135,2668.4,2667.4,3.39992081]
[1646521995379,0.00332256,2667.9,2667.4,3.39992081]
[1646521995578,0.00332256,2667.9,2667.4,4.39992081]
[1646521996181,0.00147135,2668.4,2667.4,4.39659764]
[1646521996382,0.00147135,2668.4,2667.4,4.39992081]
[1646521996582,0.00332256,2667.9,2667.4,4.39992081]
[1646521997383,0.00147135,2668.4,2667.4,4.39659764]
[1646521997822,0.00332705,2667.9,2667.4,3.39992531]
[1646521998740,1.53621096,2668.3,2667.4,1.93727]
[1646521998741,3.5,2668.2,2667.4,1.93727]
[1646521998932,0.00332459,2667.9,2667.4,1.0033252]
[1646521999130,0.00332459,2667.9,2667.4,0.0033252]
[1646521999730,1.02525186,2667.8,2667.1,0.9374]
[1646521999932,4.52525186,2667.8,2667.1,0.9374]
[1646522000132,4.52525186,2667.8,2667.4,0.0033252]
[1646522000332,0.00332459,2667.9,2667.4,0.0033252]
[1646522000936,3.5,2668.0,2667.1,0.9374]
[1646522001133,3.8745,2668.0,2667.1,0.9374]
[1646522001332,1.53978809,2667.9,2667.4,0.00332489]
[1646522001580,0.00332427,2667.9,2667.4,0.00332489]
[1646522002171,3.8745,2668.0,2667.1,0.9374]
[1646522002571,0.00332674,2667.9,2667.4,0.00332735]
[1646522003373,1.91092544,2668.0,2667.1,0.9374]
[1646522003577,0.00332674,2667.9,2667.4,0.00332735]
[1646522004573,1.91092248,2668.0,2667.1,0.9374]
[1646522004771,0.3745,2668.0,2667.1,0.9374]
[1646522004973,4.7324685,2668.1,2667.4,0.0033273]
[1646522004974,0.00332669,2667.9,2667.4,0.0033273]
[1646522005826,5.1069685,2668.1,2667.1,0.9374]
[1646522006132,0.00332669,2667.9,2667.4,0.0033273]
[1646522007127,1.91090522,2668.0,2667.1,0.9374]
[1646522007326,0.00332669,2667.9,2667.4,0.0033273]
[1646522008126,1.53641956,2668.0,2667.1,0.9374]
[1646522008426,0.00332669,2667.9,2667.4,0.0033273]
[1646522009371,1.53641956,2668.0,2667.1,0.9374]
[1646522009572,1.53641956,2668.0,2667.3,1.16181522]
[1646522009771,0.00332669,2667.9,2667.5,0.93726]
[1646522010574,1.1596,2668.2,2667.5,0.93726]
[1646522010775,1.1596,2668.2,2667.9,1.20583408]
[1646522010976,1.576,2668.4,2667.9,1.20583408]
[1646522011176,1.53622608,2668.3,2667.9,1.20583408]
[1646522011380,3.5,2668.6,2667.5,0.93726]
[1646522011574,1.53769265,2668.5,2667.5,0.93726]
[1646522012177,0.00332656,2668.2,2667.5,0.93726]
[1646522012575,0.00332656,2668.2,2667.7,0.88643827]
[1646522013027,0.00147135,2668.5,2667.7,0.88643827]
[1646522013424,0.00332663,2668.1,2667.7,0.88643827]
[1646522014226,0.00147135,2668.5,2667.7,0.88643827]
[1646522014425,0.00332666,2668.0,2667.7,0.88643827]
[1646522015226,0.00238404,2668.0,2667.7,0.88643827]
[1646522015430,1.53761029,2668.6,2667.7,0.88643827]
[1646522015631,1.53761029,2668.6,2667.9,0.93711]
[1646522015831,1.53613894,2668.6,2667.9,0.93711]
[1646522016776,0.00149803,2668.4,2667.9,0.93711]